fUSD/lending_fUSD_20260327
["ID","MTS","AMOUNT","RATE_DAILY","PERIOD"]
[418939512,1774608646178,-512452.64488795,0.00016,2]
[418939513,1774608646188,-86944.0,0.00016,30]
[418939514,1774608646198,-26837.04937167,0.00016,2]
[418939515,1774608646208,-266660.42418503,0.00016,2]
[418939516,1774608646218,-247.2746,0.00016,2]
[418939517,1774608646228,-503.65596647,0.00016012,2]
[418939518,1774608646237,-353.81365455,0.00016012,2]
[418939519,1774608646246,-2091.24,0.00016282,2]
[418939520,1774608646256,-2000.0,0.00016312,2]
[418939521,1774608646265,-1267.4456573,0.00016314,2]
[418939522,1774608646275,-621.0,0.0001651,2]
[418939524,1774608646285,-3517.0,0.0001651,2]
[418939525,1774608646294,-1045.0,0.0001651,2]
[418939526,1774608646304,-1262.0,0.0001651,2]
[418939527,1774608646313,-150.0,0.0001651,2]
[418939528,1774608646323,-3764.0,0.0001651,2]
[418939529,1774608646332,-6011.0,0.0001651,2]
[418939530,1774608646342,-417.966,0.0001651,2]
[418939531,1774608646351,-1000.0,0.00016521,2]
[418939532,1774608646360,-209.19,0.00016525,2]
[418939533,1774608646369,-154.46696213,0.00016568,2]
[418939534,1774608646379,-664.45,0.00016583,2]
[418939535,1774608646389,-2091.24,0.0001667,2]
[418939536,1774608646400,-150.0,0.00016693,2]
[418939537,1774608646409,-236.14849136,0.00016693,2]
[418939538,1774608646419,-150.0,0.00016841,2]
[418939539,1774608646589,-150.0,0.00016841,2]
[418939540,1774608646599,-150.0,0.00016841,2]
[418939541,1774608646609,-150.0,0.00016841,2]
[418939542,1774608646619,-150.0,0.00016841,2]
[418939543,1774608646628,-150.0,0.00016841,2]
[418939544,1774608646638,-150.0,0.00016841,2]
[418939545,1774608646647,-150.0,0.00016841,2]
[418939546,1774608646656,-150.0,0.00016841,2]
[418939547,1774608646665,-150.0,0.00016841,2]
[418939548,1774608646675,-150.0,0.00016841,2]
[418939549,1774608646685,-225.13,0.00017048,2]
[418939550,1774608646695,-2091.24,0.00017058,2]
[418939551,1774608646705,-1500.0,0.00017068,2]
[418939552,1774608646714,-209.19,0.00017243,2]
[418939553,1774608646724,-2000.0,0.00017616,2]
[418939554,1774608646733,-18691.23979296,0.00017695,2]
[418939555,1774608646743,-23787.13763407,0.00018032,2]
[418939556,1774608646752,-154.46696213,0.00018075,2]
[418939557,1774608646762,-160.0,0.00018123,2]
[418939558,1774608646771,-979.16666667,0.00018123,2]
[418939559,1774608646780,-160.0,0.00018123,2]
[418939560,1774608646790,-2000.0,0.00018124,2]
[418939561,1774608646799,-158.4,0.00018143,2]
[418939562,1774608646808,-1718.0,0.00018152,2]
[418939563,1774608646817,-1455.74374742,0.00018164,2]
[418939564,1774608646827,-1584.83,0.000185,2]
[418939565,1774608646836,-780.59,0.000188,2]
[418939566,1774608646846,-2172.56,0.000188,2]
[418939567,1774608646855,-1739.92,0.000188,2]
[418939568,1774608646865,-188.0,0.00019053,2]
[418939569,1774608646874,-189.56,0.00019178,2]
[418939570,1774608646883,-2000.0,0.000192,2]
[418939571,1774608646892,-621.0,0.0001951,2]
[418939572,1774608646902,-2096.6,0.0001951,2]
[418939573,1774608646911,-1614.884,0.0001951,2]
[418939574,1774608646920,-6011.0,0.0001951,2]
[418939575,1774608646929,-415.0,0.0001951,2]
[418939576,1774608646939,-154.46696213,0.00019581,2]
[418939577,1774608646948,-1170.75855486,0.00019741,2]
[418939578,1774608646957,-150.99805945,0.00019837,2]
[418939579,1774608646966,-173.27502033,0.00019837,2]
[418939580,1774608646975,-150.0,0.00019841,2]
[418939581,1774608646984,-150.0,0.00019841,2]
[418939582,1774608646993,-150.0,0.00019841,2]
[418939583,1774608647002,-150.0,0.00019841,2]
[418939584,1774608647012,-150.0,0.00019841,2]
[418939585,1774608647021,-150.0,0.00019841,2]
[418939586,1774608647030,-150.0,0.00019841,2]
[418939587,1774608647039,-150.0,0.00019841,2]
[418939588,1774608647048,-150.0,0.00019841,2]
[418939589,1774608647058,-18691.23979296,0.0001987,2]
[418939590,1774608647067,-500.0,0.00019899,2]
[418939591,1774608647076,-10000.0,0.000199,2]
[418939592,1774608647086,-2000.0,0.00019937,2]
[418939593,1774608647095,-500.0,0.00019973,2]
[418939594,1774608647105,-352.01097407,0.00019973,2]
[418939595,1774608647114,-815.52969226,0.00019986,2]
[418939596,1774608647123,-500.0,0.00019999,2]
[418939597,1774608647132,-200000.0,0.0002,2]
[418939598,1774608647141,-199482.0,0.0002,2]
[418939599,1774608647151,-825.0,0.0002,30]
[418939600,1774608647159,-502.872416,0.0002,2]
[418939601,1774608647169,-23787.13763407,0.00020165,2]
[418939602,1774608647178,-166.76,0.00020306,2]
[418939603,1774608647188,-600.08214092,0.00020633,2]
[418939604,1774608647198,-188.0,0.00020674,2]
[418939605,1774608647206,-216.0,0.000209,2]
[418939606,1774608647216,-348.0,0.000209,2]
[418939607,1774608647225,-169.0,0.000209,2]
[418939608,1774608647235,-151.0,0.000209,2]
[418939609,1774608647244,-185.0,0.000209,2]
[418939610,1774608647253,-5363.55,0.00020951,2]
[418939611,1774608647262,-1112.82,0.00020951,2]
[418939612,1774608647272,-154.46696213,0.00021087,2]
[418939613,1774608647280,-501.20618875,0.00021245,2]
[418939614,1774608647291,-500.83029557,0.00021319,2]
[418939615,1774608647300,-189.56,0.00021341,2]
[418939616,1774608647309,-376.0,0.00021615,2]
[418939617,1774608647318,-2000.0,0.00021749,2]
[418939618,1774608647327,-158.4,0.00021771,2]
[418939619,1774608647337,-216.0,0.000219,2]
[418939620,1774608647346,-348.0,0.000219,2]
[418939621,1774608647355,-160.0,0.000219,2]
[418939622,1774608647364,-185.0,0.000219,2]
[418939623,1774608647373,-500.0,0.00021917,2]
[418939624,1774608647382,-5000.0,0.00021918,2]
[418939625,1774608647391,-18691.23979296,0.00022044,2]
[418939626,1774608647400,-1584.83,0.000221,7]
[418939627,1774608647409,-368.59621362,0.00022132,2]
[418939628,1774608647419,-1739.92,0.000222,7]
[418939629,1774608647430,-23787.13763407,0.00022297,2]
[418939630,1774608647440,-780.59,0.000223,7]
[418939631,1774608647449,-2172.56,0.000223,7]
[418939632,1774608647458,-543.64,0.00022387,3]
[418939633,1774608647467,-825.0,0.00022433,30]
[418939634,1774608647477,-6011.0,0.0002251,2]
[418939635,1774608647486,-376.0,0.00022557,2]
[418939636,1774608647497,-154.46696217,0.00022593,2]
[418939637,1774608647507,-2000.0,0.000229,2]
[418939638,1774608647517,-216.0,0.000229,2]
[418939639,1774608647527,-348.0,0.000229,2]
[418939640,1774608647537,-185.0,0.000229,2]
[418939641,1774608647546,-275.38,0.0002341,2]
[418939642,1774608647555,-189.56,0.00023504,2]
[418939643,1774608647565,-1570.0,0.00023566,3]
[418939644,1774608647575,-1584.83,0.000238,7]
[418939645,1774608647584,-216.0,0.000239,2]
[418939646,1774608647594,-348.0,0.000239,2]
[418939647,1774608647604,-185.0,0.000239,2]
[418939648,1774608647614,-1739.92,0.00024,7]
[418939649,1774608647625,-815.52969226,0.00024072,2]
[418939650,1774608647635,-780.59,0.000241,7]
[418939651,1774608647646,-2172.56,0.000241,7]
[418939652,1774608647657,-160.0,0.000241,7]
[418939653,1774608647666,-18691.23979296,0.00024219,2]
[418939654,1774608647675,-23787.13763407,0.00024429,2]
[418939655,1774608647685,-1000.0,0.00024658,2]
[418939656,1774608647694,-150.0,0.00024658,2]
[418939657,1774608647703,-166.76,0.00024713,2]
[418939658,1774608647712,-825.0,0.00024866,60]
[418939659,1774608647722,-920.94502074,0.0002489,2]
[418939660,1774608647731,-500.0,0.00024899,2]
[418939661,1774608647740,-500.0,0.00024899,2]
[418939662,1774608647749,-216.0,0.000249,2]
[418939663,1774608647758,-348.0,0.000249,2]
[418939664,1774608647767,-185.0,0.000249,2]
[418939665,1774608647776,-604796.717171,0.000249,3]
[418939666,1774608647786,-520.38249019,0.00024979,2]
[418939667,1774608647795,-854.14318399,0.00025,120]
[418939668,1774608647805,-150.0,0.00025,3]
[418939669,1774608647814,-979.16666667,0.00025,30]
[418939670,1774608647823,-2806.0,0.000252,3]
[418939671,1774608647832,-600.08214092,0.00025367,2]
[418939672,1774608647841,-6011.0,0.0002551,2]
[418939673,1774608647851,-189.56,0.00025667,2]
[418939674,1774608647860,-150.0,0.0002589,2]
[418939675,1774608647869,-216.0,0.000259,2]
[418939676,1774608647880,-352.46341475,0.000259,2]
[418939677,1774608647889,-202.0,0.000259,2]
[418939678,1774608647898,-18691.23979296,0.00026393,2]
[418939679,1774608647907,-23787.13763407,0.00026562,2]
[418939680,1774608647917,-2000.0,0.000266,2]
[418939681,1774608647926,-979.16666667,0.00027,10]
[418939682,1774608647936,-152.0,0.00027074,3]
[418939683,1774608647945,-534.33313338,0.00027172,2]
[418939684,1774608647954,-150.0,0.00027185,2]
[418939685,1774608647965,-195.62226088,0.0002729,30]
[418939686,1774608647974,-359.40292755,0.00027295,60]
[418939687,1774608647984,-825.0,0.000273,60]
[418939688,1774608647993,-300.0,0.00027397,2]
[418939689,1774608648002,-496.06,0.00027397,20]
[418939690,1774608648011,-9628.32,0.00027397,10]
[418939691,1774608648020,-15033.03,0.00027397,10]
[418939692,1774608648029,-500.0,0.00027788,120]
[418939693,1774608648038,-517.0,0.00027802,3]
[418939694,1774608648047,-189.56,0.0002783,2]
[418939695,1774608648056,-160.0,0.00028,30]
[418939696,1774608648066,-815.52969226,0.00028158,2]
[418939697,1774608648075,-500.0,0.00028164,2]
[418939698,1774608648084,-700.0,0.00028285,21]
[418939699,1774608648093,-1570.0,0.00028442,3]
[418939700,1774608648102,-150.0,0.00028469,2]
[418939701,1774608648111,-6011.0,0.0002851,2]
[418939702,1774608648121,-150.0,0.00028544,2]
[418939703,1774608648130,-1200.0,0.00028559,21]
[418939704,1774608648139,-18691.23979296,0.00028568,2]
[418939705,1774608648149,-150.0,0.00028588,2]
[418939706,1774608648159,-150.0,0.00028665,2]
[418939707,1774608648168,-23787.13763407,0.00028694,2]
[418939708,1774608648177,-150.0,0.00028738,2]
[418939709,1774608648187,-150.0,0.00028806,2]
[418939710,1774608648195,-150.0,0.00028884,2]
[418939711,1774608648205,-150.0,0.00028987,2]
[418939712,1774608648214,-160.0,0.00029,3]
[418939713,1774608648223,-700.0,0.00029107,21]
[418939714,1774608648232,-150.0,0.00029114,2]
[418939715,1774608648241,-150.0,0.00029119,2]
[418939716,1774608648250,-150.0,0.00029188,2]
[418939717,1774608648260,-150.0,0.00029246,2]
[418939718,1774608648270,-1036.91018542,0.0002933,2]
[418939719,1774608648279,-1200.0,0.00029381,21]
[418939720,1774608648288,-150.0,0.00029384,2]
[418939721,1774608648298,-150.0,0.00029504,2]
[418939722,1774608648307,-222.35,0.00029559,2]
[418939723,1774608648317,-150.0,0.00029564,2]
[418939724,1774608648327,-150.0,0.00029566,2]
[418939725,1774608648336,-211.19600435,0.00029573,2]
[418939726,1774608648345,-150.0,0.00029598,2]
[418939727,1774608648354,-825.0,0.00029733,60]
[418939728,1774608648363,-150.0,0.00029745,2]
[418939729,1774608648372,-150.0,0.00029783,2]
[418939730,1774608648382,-150.0,0.00029899,2]
[418939731,1774608648391,-700.0,0.00029929,21]
[418939732,1774608648400,-150.0,0.00029948,2]
[418939733,1774608648409,-487.0112185,0.00029964,2]
[418939734,1774608648418,-150.0,0.00029971,2]
[418939735,1774608648427,-189.56,0.00029993,2]
[418939736,1774608648436,-210.33,0.0003,7]
[418939737,1774608648446,-460.506645,0.0003,20]
[418939738,1774608648455,-500.0,0.0003,120]
[418939739,1774608648464,-150.0,0.0003,5]
[418939740,1774608648473,-200000.0,0.0003,30]
[418939741,1774608648482,-1138.37226926,0.0003,120]
[418939742,1774608648492,-150.0,0.00030015,2]
[418939743,1774608648501,-150.0,0.0003006,2]
[418939744,1774608648510,-150.0,0.00030092,2]
[418939745,1774608648519,-600.08214092,0.000301,2]
[418939746,1774608648528,-150.0,0.00030107,2]
[418939747,1774608648537,-150.0,0.00030108,2]
[418939748,1774608648546,-150.0,0.0003012,2]
[418939749,1774608648556,-150.0,0.00030125,2]
[418939750,1774608648565,-150.0,0.00030136,20]
[418939751,1774608648575,-153.0,0.000302,30]
[418939752,1774608648584,-500.0,0.00030202,120]
[418939753,1774608648594,-1200.0,0.00030203,21]
[418939754,1774608648605,-2000.0,0.000303,2]
[418939755,1774608648615,-152.0,0.00030478,4]
[418939756,1774608648624,-1570.0,0.00030573,3]
[418939757,1774608648634,-18691.23979296,0.00030742,2]
[418939758,1774608648644,-700.0,0.00030751,21]
[418939759,1774608648654,-23787.13763407,0.00030826,2]
[418939760,1774608648664,-2806.0,0.00030863,3]
[418939761,1774608648673,-648.16,0.0003087,3]
[418939762,1774608648683,-529.78,0.0003087,3]
[418939763,1774608648693,-1584.83,0.00031,7]
[418939764,1774608648702,-1200.0,0.00031025,21]
[418939765,1774608648712,-1620.39,0.00031351,3]
[418939766,1774608648721,-529.78,0.00031351,3]
[418939767,1774608648731,-780.59,0.000314,30]
[418939768,1774608648740,-150.0,0.0003147,2]
[418939769,1774608648749,-1739.92,0.000315,7]
[418939770,1774608648758,-6011.0,0.0003151,2]
[418939771,1774608648767,-324.07,0.00031518,7]
[418939772,1774608648776,-500.0,0.00031535,120]
[418939773,1774608648785,-700.0,0.00031573,21]
[418939774,1774608648795,-184.7173238,0.00031676,120]
[418939775,1774608648804,-1200.0,0.00031847,21]
[418939776,1774608648813,-2172.56,0.000319,7]
[418939777,1774608648822,-451.51024558,0.0003197,2]
[418939778,1774608648833,-300.52476796,0.0003197,2]
[418939779,1774608648842,-166.7518798,0.00031996,3]
[418939780,1774608648851,-189.77720479,0.00031996,3]
[418939781,1774608648861,-173.61853696,0.00031996,3]
[418939782,1774608648870,-151.0,0.00032,7]
[418939783,1774608648879,-157.41,0.00032016,2]
[418939784,1774608648888,-1170.75855485,0.00032021,2]
[418939785,1774608648897,-150.99805945,0.00032069,2]
[418939786,1774608648906,-173.27502031,0.00032069,2]
[418939787,1774608648915,-780.59,0.000321,30]
[418939788,1774608648925,-780.59,0.000321,30]
[418939789,1774608648935,-189.56,0.00032156,2]
[418939790,1774608648945,-825.0,0.00032166,60]
[418939791,1774608648955,-815.52969226,0.00032244,2]
[418939792,1774608648965,-700.0,0.00032395,21]
[418939793,1774608648974,-2172.56,0.000325,7]
[418939794,1774608648985,-1739.92,0.000325,7]
[418939795,1774608648994,-1200.0,0.00032669,21]
[418939796,1774608649003,-1584.83,0.000327,7]
[418939797,1774608649012,-500.0,0.00032869,120]
[418939798,1774608649022,-321.40612107,0.0003287,120]
[418939799,1774608649031,-1000.0,0.00032877,120]
[418939800,1774608649040,-314984.35,0.000329,7]
[418939801,1774608649050,-7600.0,0.000329,12]
[418939802,1774608649059,-18691.23979296,0.00032917,2]
[418939803,1774608649068,-23787.13763407,0.00032959,2]
[418939804,1774608649077,-200000.0,0.00033,20]
[418939805,1774608649088,-150.0,0.00033043,2]
[418939806,1774608649098,-1739.92,0.000331,30]
[418939807,1774608649109,-700.0,0.00033217,21]
[418939808,1774608649118,-2172.57,0.000333,30]
[418939809,1774608649127,-1584.83,0.000333,30]
[418939810,1774608649136,-1584.83,0.000334,30]
[418939811,1774608649146,-1739.92,0.000338,30]
[418939812,1774608649155,-152.0,0.00033883,5]
[418939813,1774608649166,-2000.0,0.00034,2]
[418939814,1774608649175,-500.0,0.00034202,120]
[418939815,1774608649184,-1200.0,0.00034313,21]
[418939816,1774608649195,-189.56,0.00034319,2]
[418939817,1774608649204,-216.0,0.00034382,30]
[418939818,1774608649213,-348.0,0.00034382,30]
[418939819,1774608649222,-156.0,0.00034382,30]
[418939820,1774608649231,-151.0,0.00034382,30]
[418939821,1774608649240,-185.0,0.00034382,30]
[418939822,1774608649249,-2172.56,0.000344,30]
[418939823,1774608649259,-6011.0,0.0003451,2]
[418939824,1774608649268,-825.0,0.00034599,90]
[418939825,1774608649277,-150.0,0.00034696,2]
[418939826,1774608649287,-1500.0,0.00034795,2]
[418939827,1774608649296,-780.59,0.000348,30]
[418939828,1774608649305,-600.08214092,0.00034833,2]
[418939829,1774608649315,-700.0,0.00034861,21]
[418939830,1774608649325,-100000.0,0.00035,30]
[418939831,1774608649334,-100000.0,0.00035,30]
[418939832,1774608649344,-100000.0,0.00035,30]
[418939833,1774608649353,-100000.0,0.00035,30]
[418939834,1774608649362,-100000.0,0.00035,30]
[418939835,1774608649371,-200000.0,0.00035,30]
[418939836,1774608649381,-301.52207002,0.00035,120]
[418939837,1774608649390,-18691.23979296,0.00035091,2]
[418939838,1774608649400,-23787.13763407,0.00035091,2]
[418939839,1774608649410,-314984.35,0.000351,7]
[418939840,1774608649420,-275.38,0.00035191,2]
[418939841,1774608649428,-390.35,0.00035248,2]
[418939842,1774608649438,-216.0,0.00035382,30]
[418939843,1774608649447,-348.0,0.00035382,30]
[418939844,1774608649456,-156.0,0.00035382,30]
[418939845,1774608649466,-151.0,0.00035382,30]
[418939846,1774608649476,-185.0,0.00035382,30]
[418939847,1774608649485,-5010.0,0.00035463,7]
[418939848,1774608649495,-500.0,0.00035535,120]
[418939849,1774608649504,-1607.24003215,0.00035616,120]
[418939850,1774608649513,-1200.0,0.00035957,21]
[418939851,1774608649523,-151.15785305,0.00035978,85]
[418939852,1774608649533,-1620.39,0.00036054,14]
[418939853,1774608649543,-529.78,0.00036054,14]
[418939854,1774608649553,-1584.83,0.000361,30]
[418939855,1774608649563,-815.52969226,0.0003633,2]
[418939856,1774608649572,-216.0,0.00036382,30]
[418939857,1774608649582,-348.0,0.00036382,30]
[418939858,1774608649591,-156.0,0.00036382,30]
[418939859,1774608649600,-151.0,0.00036382,30]
[418939860,1774608649609,-185.0,0.00036382,30]
[418939861,1774608649619,-920.94502074,0.0003639,2]
[418939862,1774608649628,-314984.35,0.000364,7]
[418939863,1774608649638,-150.0,0.0003643,2]
[418939864,1774608649648,-189.56,0.00036482,2]
[418939865,1774608649657,-700.0,0.00036505,21]
[418939866,1774608649666,-151.45317405,0.00036593,87]
[418939867,1774608649675,-176.99,0.00036622,10]
[418939868,1774608649685,-1739.92,0.000367,30]
[418939869,1774608649694,-2172.56,0.000368,30]
[418939870,1774608649703,-500.0,0.00036869,120]
[418939871,1774608649714,-182.94,0.00036895,2]
[418939872,1774608649723,-1500.0,0.000369,13]
[418939873,1774608649733,-569.32,0.00036916,2]
[418939874,1774608649743,-200000.0,0.00037,20]
[418939875,1774608649754,-825.0,0.00037032,90]
[418939876,1774608649763,-351.04,0.00037096,7]
[418939877,1774608649772,-351.04,0.00037096,30]
[418939878,1774608649782,-269.7,0.00037096,7]
[418939879,1774608649791,-269.7,0.00037096,7]
[418939880,1774608649801,-269.7,0.00037096,30]
[418939881,1774608649810,-269.7,0.00037096,30]
[418939882,1774608649820,-152.0,0.00037288,6]
[418939883,1774608649829,-153.74974694,0.00037288,5]
[418939884,1774608649838,-780.59,0.000373,30]
[418939885,1774608649848,-216.0,0.00037382,30]
[418939886,1774608649857,-348.0,0.00037382,30]
[418939887,1774608649867,-156.0,0.00037382,30]
[418939888,1774608649876,-151.0,0.00037382,30]
[418939889,1774608649885,-185.0,0.00037382,30]
[418939890,1774608649895,-250.0,0.00037412,7]
[418939891,1774608649904,-2039.82,0.0003751,2]
[418939892,1774608649913,-1200.0,0.00037601,21]
[418939893,1774608649923,-2000.0,0.000377,2]
[418939894,1774608649932,-1625.62,0.00037722,2]
[418939895,1774608649942,-476.53,0.00037722,2]
[418939896,1774608649951,-151.0,0.00037739,2]
[418939897,1774608649960,-151.0,0.00037739,2]
[418939898,1774608649970,-151.0,0.00037739,2]
[418939899,1774608649980,-16780.6228891,0.00038068,7]
[418939900,1774608649990,-163516.79246479,0.00038068,7]
[418939901,1774608649999,-400174.40588075,0.00038068,7]
[418939902,1774608650009,-328.7829921,0.000381,33]
[418939903,1774608650020,-700.0,0.00038149,21]
[418939904,1774608650029,-500.0,0.00038202,120]
[418939905,1774608650039,-150.0,0.00038252,2]
[418939906,1774608650048,-300.0,0.00038356,120]
[418939907,1774608650057,-950.0,0.00038356,2]
[418939908,1774608650067,-950.0,0.00038356,2]
[418939909,1774608650076,-890.0,0.00038356,2]
[418939910,1774608650085,-950.0,0.00038356,2]
[418939911,1774608650095,-950.0,0.00038356,2]
[418939912,1774608650105,-890.0,0.00038356,2]
[418939913,1774608650114,-950.0,0.00038356,2]
[418939914,1774608650124,-950.0,0.00038356,2]
[418939915,1774608650134,-890.0,0.00038356,2]
[418939916,1774608650143,-216.0,0.00038382,30]
[418939917,1774608650153,-348.0,0.00038382,30]
[418939918,1774608650162,-156.0,0.00038382,30]
[418939919,1774608650171,-151.0,0.00038382,30]
[418939920,1774608650181,-185.0,0.00038382,30]
[418939921,1774608650191,-534.33313338,0.00038444,2]
[418939922,1774608650200,-314984.35,0.000385,7]
[418939923,1774608650210,-182.92,0.00038545,7]
[418939924,1774608650219,-181.96,0.00038548,7]
[418939925,1774608650228,-189.56,0.00038644,2]
[418939926,1774608650238,-1000.0,0.000388,3]
[418939927,1774608650247,-206.0,0.0003891,30]
[418939928,1774608650256,-4164.387,0.00038917,53]
[418939929,1774608650266,-185.471,0.00038917,53]
[418939930,1774608650275,-1200.0,0.00039245,21]
[418939931,1774608650286,-390.58,0.00039368,7]
[418939932,1774608650296,-151.0,0.00039368,7]
[418939933,1774608650305,-636.15,0.00039368,7]
[418939934,1774608650315,-216.0,0.00039382,30]
[418939935,1774608650325,-348.0,0.00039382,30]
[418939936,1774608650335,-156.0,0.00039382,30]
[418939937,1774608650487,-151.0,0.00039382,30]
[418939938,1774608650497,-185.0,0.00039382,30]
[418939939,1774608650507,-825.0,0.00039465,90]
[418939940,1774608650517,-582.186934,0.00039535,120]
[418939941,1774608650527,-600.08214092,0.00039567,2]
[418939942,1774608650536,-812.57736488,0.00039726,15]
[418939943,1774608650546,-812.57736488,0.00039726,15]
[418939944,1774608650555,-812.57736488,0.00039726,15]
[418939945,1774608650564,-812.57736488,0.00039726,15]
[418939946,1774608650573,-812.57736488,0.00039726,15]
[418939947,1774608650583,-812.57736488,0.00039726,15]
[418939948,1774608650592,-812.57736488,0.00039726,15]
[418939949,1774608650602,-812.57736488,0.00039726,15]
[418939950,1774608650611,-812.57736488,0.00039726,15]
[418939951,1774608650621,-812.57736488,0.00039726,15]
[418939952,1774608650631,-812.57736488,0.00039726,15]
[418939953,1774608650641,-812.57736488,0.00039726,15]
[418939954,1774608650650,-812.57736488,0.00039726,15]
[418939955,1774608650659,-812.57736488,0.00039726,15]
[418939956,1774608650668,-812.57736488,0.00039726,15]
[418939957,1774608650679,-812.57736488,0.00039726,15]
[418939958,1774608650688,-812.57736488,0.00039726,15]
[418939959,1774608650698,-812.57736488,0.00039726,15]
[418939960,1774608650708,-812.57736488,0.00039726,15]
[418939961,1774608650721,-812.57736488,0.00039726,15]
[418939962,1774608650731,-877.58355406,0.00039726,15]
[418939963,1774608650740,-877.58355406,0.00039726,15]
[418939964,1774608650750,-877.58355406,0.00039726,15]
[418939965,1774608650759,-877.58355406,0.00039726,15]
[418939966,1774608650768,-877.58355406,0.00039726,15]
[418939967,1774608650778,-877.58355406,0.00039726,15]
[418939968,1774608650788,-877.58355406,0.00039726,15]
[418939969,1774608650798,-877.58355406,0.00039726,15]
[418939970,1774608650808,-877.58355406,0.00039726,15]
[418939971,1774608650818,-700.0,0.00039793,21]
[418939972,1774608650827,-664.47754263,0.0004,30]
[418939973,1774608650837,-664.47754263,0.0004,30]
[418939974,1774608650847,-664.47754263,0.0004,30]
[418939975,1774608650856,-664.47754263,0.0004,30]
[418939976,1774608650865,-664.47754262,0.0004,30]
[418939977,1774608650875,-664.47754262,0.0004,30]
[418939978,1774608650884,-664.47754262,0.0004,30]
[418939979,1774608650894,-664.47754262,0.0004,30]
[418939980,1774608650903,-664.47754262,0.0004,30]
[418939981,1774608650913,-664.47754262,0.0004,30]
[418939982,1774608650923,-153.0,0.0004,120]
[418939983,1774608650933,-152.0,0.0004,120]
[418939984,1774608650943,-169.35044105,0.0004,120]
[418939985,1774608650952,-1863.3176675,0.0004,120]
[418939986,1774608650962,-179.03962553,0.0004,30]
[418939987,1774608650971,-1923.68522716,0.0004,30]
[418939988,1774608650981,-100000.0,0.0004,30]
[418939989,1774608650991,-160.0,0.0004,120]
[418939990,1774608651001,-664.47754262,0.0004,30]
[418939991,1774608651011,-664.47754262,0.0004,30]
[418939992,1774608651021,-664.47754262,0.0004,30]
[418939993,1774608651030,-664.47754262,0.0004,30]
[418939994,1774608651040,-664.47754262,0.0004,30]
[418939995,1774608651050,-664.47754262,0.0004,30]
[418939996,1774608651059,-664.47754262,0.0004,30]
[418939997,1774608651069,-664.47754262,0.0004,30]
[418939998,1774608651078,-664.47754262,0.0004,30]
[418939999,1774608651087,-664.47754262,0.0004,30]
[418940000,1774608651097,-6925.85104699,0.0004,120]
[418940001,1774608651106,-200000.0,0.0004,20]
[418940002,1774608651116,-979.16666667,0.0004,120]
[418940003,1774608651125,-150.0,0.00040165,2]
[418940004,1774608651135,-151.0,0.00040189,7]
[418940005,1774608651144,-566.41,0.0004019,7]
[418940006,1774608651154,-566.18,0.0004019,7]
[418940007,1774608651163,-182.91,0.0004019,7]
[418940008,1774608651173,-216.0,0.00040382,30]
[418940009,1774608651182,-348.0,0.00040382,30]
[418940010,1774608651193,-156.0,0.00040382,30]
[418940011,1774608651202,-151.0,0.00040382,30]
[418940012,1774608651212,-185.0,0.00040382,30]